bitfinex-derivatives/quotes_BNBF0:USTF0_20250608
["timestamp","ask_amount","ask_price","bid_price","bid_amount"]
[1749412762786,1.1397646,654.48,653.73,0.3059367]
[1749412762985,1.1397646,654.47,653.73,0.3059367]
[1749412763188,1.1397646,654.46,653.73,0.3059367]
[1749412763387,1.1397646,654.45,653.73,0.3059367]
[1749412763690,1.1397646,654.44,653.73,0.3059367]
[1749412763888,1.1397646,654.43,653.73,0.3059367]
[1749412764186,0.26589648,654.56,653.73,0.3059367]
[1749412764492,1.13989031,654.55,653.73,0.3059367]
[1749412764792,1.13989031,654.54,653.73,0.3059367]
[1749412764988,1.13989031,654.53,653.73,0.3059367]
[1749412765187,1.13989031,654.52,653.73,0.3059367]
[1749412765391,1.13989031,654.51,653.73,0.3059367]
[1749412765687,1.13989031,654.5,653.73,0.3059367]
[1749412765891,0.26589648,654.56,653.73,0.3059367]
[1749412765892,1.13989031,654.49,653.73,0.3059367]
[1749412766092,1.13989031,654.48,653.73,0.3059367]
[1749412766392,1.13989031,654.47,653.73,0.3059367]
[1749412766588,1.13989031,654.46,653.73,0.3059367]
[1749412766793,1.13989031,654.45,653.73,0.3059367]
[1749412766991,1.13989031,654.44,653.73,0.3059367]
[1749412767191,1.13996331,654.43,653.73,0.3059367]
[1749412767391,0.26589648,654.56,653.73,0.3059367]
[1749412767694,1.13997232,654.55,653.73,0.3059367]
[1749412767889,1.13997232,654.54,653.73,0.3059367]
[1749412768089,1.13997232,654.53,653.73,0.3059367]
[1749412768290,1.13997232,654.52,653.73,0.3059367]
[1749412768491,1.13997232,654.51,653.73,0.3059367]
[1749412768691,1.13997232,654.5,653.73,0.3059367]
[1749412768894,1.13997232,654.49,653.73,0.3059367]
[1749412769090,1.13997232,654.48,653.73,0.3059367]
[1749412769291,1.13997232,654.47,653.73,0.3059367]
[1749412769491,1.13997232,654.46,653.73,0.3059367]
[1749412769695,1.13997232,654.45,653.73,0.3059367]
[1749412769895,0.26589648,654.56,653.73,0.3059367]
[1749412769896,1.13997232,654.44,653.73,0.3059367]
[1749412770094,1.13997232,654.43,653.73,0.3059367]
[1749412770292,0.26589648,654.56,653.73,0.3059367]
[1749412770293,1.13997232,654.42,653.73,0.3059367]
[1749412770493,0.26589648,654.56,653.73,0.3059367]
[1749412770697,1.14009002,654.55,653.73,0.3059367]
[1749412770896,1.14009002,654.54,653.73,0.3059367]
[1749412771195,1.14009002,654.53,653.73,0.3059367]
[1749412771394,1.14009002,654.52,653.73,0.3059367]
[1749412771595,1.14009002,654.51,653.73,0.3059367]
[1749412771897,1.14009002,654.5,653.73,0.3059367]
[1749412772193,1.14009002,654.49,653.73,0.3059367]
[1749412772392,1.14009002,654.48,653.73,0.3059367]
[1749412772595,1.14009002,654.47,653.73,0.3059367]
[1749412772791,0.26589648,654.56,653.73,0.3059367]
[1749412772792,1.14009002,654.46,653.73,0.3059367]
[1749412772998,1.14009002,654.45,653.73,0.3059367]
[1749412773197,0.26589648,654.56,653.73,0.3059367]
[1749412773396,1.14030003,654.55,653.73,0.3059367]
[1749412773599,1.14030003,654.54,653.73,0.3059367]
[1749412773896,1.14030003,654.53,653.73,0.3059367]
[1749412774100,0.26589648,654.56,653.73,0.3059367]
[1749412774101,1.14030003,654.52,653.73,0.3059367]
[1749412774397,1.14030003,654.51,653.73,0.3059367]
[1749412774601,1.14030003,654.5,653.73,0.3059367]
[1749412774900,1.14030003,654.49,653.73,0.3059367]
[1749412775198,1.14030003,654.48,653.73,0.3059367]
[1749412775398,1.14030003,654.47,653.73,0.3059367]
[1749412775601,1.14030003,654.46,653.73,0.3059367]
[1749412775800,1.14030003,654.45,653.73,0.3059367]
[1749412775998,1.14030003,654.44,653.73,0.3059367]
[1749412776298,0.26589648,654.56,653.73,0.3059367]
[1749412776498,1.14066887,654.55,653.73,0.3059367]
[1749412776700,1.14066887,654.54,653.73,0.3059367]
[1749412776899,1.14066887,654.53,653.73,0.3059367]
[1749412777104,1.14066887,654.52,653.73,0.3059367]
[1749412777299,1.14066887,654.51,653.73,0.3059367]
[1749412777505,1.14066887,654.5,653.73,0.3059367]
[1749412777804,1.14066887,654.49,653.73,0.3059367]
[1749412778003,1.14066887,654.48,653.73,0.3059367]
[1749412778203,0.26589648,654.56,653.73,0.3059367]
[1749412778204,1.14066887,654.47,653.73,0.3059367]
[1749412778502,0.26589648,654.56,653.73,0.3059367]
[1749412778503,1.14066887,654.46,653.73,0.3059367]
[1749412778704,1.14066887,654.45,653.73,0.3059367]
[1749412778904,1.14066887,654.44,653.73,0.3059367]
[1749412779102,0.26589648,654.56,653.73,0.3059367]
[1749412779103,1.14066887,654.43,653.73,0.3059367]
[1749412779299,1.14066887,654.42,653.73,0.3059367]
[1749412779499,0.26589648,654.56,653.73,0.3059367]
[1749412779799,1.14123237,654.55,653.73,0.3059367]
[1749412779998,1.14123237,654.54,653.73,0.3059367]
[1749412780204,1.14123237,654.53,653.73,0.3059367]
[1749412780403,1.14123237,654.52,653.73,0.3059367]
[1749412780605,1.14123237,654.51,653.73,0.3059367]
[1749412780905,1.14123237,654.5,653.73,0.3059367]
[1749412781103,1.14123237,654.49,653.73,0.3059367]
[1749412781400,1.14123237,654.48,653.73,0.3059367]
[1749412781704,1.14123237,654.47,653.73,0.3059367]
[1749412781900,1.14123237,654.46,653.73,0.3059367]
[1749412782105,1.14123237,654.45,653.73,0.3059367]
[1749412782305,1.14123237,654.44,653.73,0.3059367]
[1749412782506,1.14123237,654.43,653.73,0.3059367]
[1749412782704,1.14123237,654.42,653.73,0.3059367]
[1749412782909,1.14123237,654.41,653.73,0.3059367]
[1749412783203,1.14123237,654.4,653.73,0.3059367]
[1749412783407,1.14123237,654.39,653.73,0.3059367]
[1749412783606,0.26589648,654.56,653.73,0.3059367]
[1749412783802,1.1407601,654.55,653.73,0.3059367]
[1749412784007,1.1407601,654.54,653.73,0.3059367]
[1749412784206,1.1407601,654.53,653.73,0.3059367]
[1749412784406,1.1407601,654.52,653.73,0.3059367]
[1749412784705,1.1407601,654.51,653.73,0.3059367]
[1749412784907,1.1407601,654.5,653.73,0.3059367]
[1749412785210,1.1407601,654.49,653.73,0.3059367]
[1749412785506,1.1407601,654.48,653.73,0.3059367]
[1749412785711,1.1407601,654.47,653.73,0.3059367]
[1749412785907,1.1407601,654.46,653.73,0.3059367]
[1749412786110,1.1407601,654.45,653.73,0.3059367]
[1749412786306,1.1407601,654.44,653.73,0.3059367]
[1749412786506,1.1407601,654.43,653.73,0.3059367]
[1749412786710,1.1407601,654.42,653.73,0.3059367]
[1749412786910,1.1407601,654.41,653.73,0.3059367]
[1749412787111,1.1407601,654.4,653.73,0.3059367]
[1749412787311,0.26589648,654.56,653.73,0.3059367]
[1749412787611,1.14087326,654.55,653.73,0.3059367]
[1749412787806,1.14087326,654.54,653.73,0.3059367]
[1749412788011,1.14087326,654.53,653.73,0.3059367]
[1749412788308,1.14087326,654.52,653.73,0.3059367]
[1749412788507,1.14087326,654.51,653.73,0.3059367]
[1749412788710,1.14087326,654.5,653.73,0.3059367]
[1749412788911,1.14087326,654.49,653.73,0.3059367]
[1749412789214,1.14087326,654.48,653.73,0.3059367]
[1749412789412,1.14087326,654.47,653.73,0.3059367]
[1749412789612,1.14087326,654.46,653.73,0.3059367]
[1749412789809,1.14087326,654.45,653.73,0.3059367]
[1749412790014,1.14087326,654.44,653.73,0.3059367]
[1749412790214,0.26589648,654.56,653.73,0.3059367]
[1749412790411,1.13900217,654.55,653.73,0.3059367]
[1749412790616,1.13900217,654.54,653.73,0.3059367]
[1749412790812,1.13900217,654.53,653.73,0.3059367]
[1749412791016,1.13900217,654.52,653.73,0.3059367]
[1749412791217,1.13900217,654.51,653.73,0.3059367]
[1749412791416,1.13900217,654.5,653.73,0.3059367]
[1749412791613,1.13900217,654.49,653.73,0.3059367]
[1749412791812,1.13900217,654.48,653.73,0.3059367]
[1749412792112,1.13900217,654.47,653.73,0.3059367]
[1749412792312,1.13900217,654.46,653.73,0.3059367]
[1749412792616,0.26589648,654.56,653.73,0.3059367]
[1749412792816,1.13873626,654.55,653.73,0.3059367]
[1749412793017,1.13873626,654.54,653.73,0.3059367]
[1749412793214,1.13873626,654.53,653.73,0.3059367]
[1749412793517,1.13873626,654.52,653.73,0.3059367]
[1749412793814,1.13873626,654.51,653.73,0.3059367]
[1749412794013,1.13873626,654.5,653.73,0.3059367]
[1749412794317,1.13873626,654.49,653.73,0.3059367]
[1749412794515,1.13873626,654.48,653.73,0.3059367]
[1749412794714,1.13873626,654.47,653.73,0.3059367]
[1749412794918,1.13873626,654.46,653.73,0.3059367]
[1749412795114,0.26589648,654.56,653.73,0.3059367]
[1749412795314,1.13877032,654.55,653.73,0.3059367]
[1749412795619,1.13877032,654.54,653.73,0.3059367]
[1749412795816,1.13877032,654.53,653.73,0.3059367]
[1749412796015,1.13877032,654.52,653.73,0.3059367]
[1749412796221,1.13877032,654.51,653.73,0.3059367]
[1749412796417,0.26589648,654.56,653.73,0.3059367]
[1749412796418,1.13877032,654.5,653.73,0.3059367]
[1749412796620,1.13877032,654.49,653.73,0.3059367]
[1749412796915,1.13877032,654.48,653.73,0.3059367]
[1749412797119,0.26589648,654.56,653.73,0.3059367]
[1749412797322,1.13867833,654.55,653.73,0.3059367]
[1749412797621,1.13867833,654.54,653.73,0.3059367]
[1749412797818,1.13867833,654.53,653.73,0.3059367]
[1749412798018,1.13867833,654.52,653.73,0.3059367]
[1749412798220,1.13867833,654.51,653.73,0.3059367]
[1749412798423,0.26589648,654.56,653.73,0.3059367]
[1749412798424,1.13867833,654.5,653.73,0.3059367]
[1749412798623,1.13867833,654.49,653.73,0.3059367]
[1749412798824,1.13867833,654.48,653.73,0.3059367]
[1749412799123,0.26589648,654.56,653.73,0.3059367]
[1749412799424,1.1386741,654.55,653.73,0.3059367]
[1749412799623,1.1386741,654.54,653.73,0.3059367]
[1749412799823,1.1386741,654.53,653.73,0.3059367]
[1749412800022,1.1386741,654.52,653.73,0.3059367]
[1749412800219,1.1386741,654.51,653.73,0.3059367]
[1749412800518,1.1386741,654.5,653.73,0.3059367]
[1749412800824,1.1386741,654.49,653.73,0.3059367]
[1749412801023,1.1386741,654.48,653.73,0.3059367]
[1749412801221,0.26589648,654.56,653.73,0.3059367]
[1749412801421,1.13864092,654.55,653.73,0.3059367]
[1749412801625,1.13864092,654.54,653.73,0.3059367]
[1749412801825,1.13864092,654.53,653.73,0.3059367]
[1749412802025,1.13864092,654.52,653.73,0.3059367]
[1749412802227,1.13864092,654.51,653.73,0.3059367]
[1749412802423,0.26589648,654.56,653.73,0.3059367]
[1749412802625,1.13862045,654.55,653.73,0.3059367]
[1749412802824,1.13862045,654.54,653.73,0.3059367]
[1749412803023,1.13862045,654.53,653.73,0.3059367]
[1749412803225,1.13862045,654.52,653.73,0.3059367]
[1749412803428,1.13862045,654.51,653.73,0.3059367]
[1749412803628,0.26589648,654.56,653.73,0.3059367]
[1749412803823,1.13848031,654.55,653.73,0.3059367]
[1749412804124,1.13848031,654.54,653.73,0.3059367]
[1749412804325,1.13848031,654.53,653.73,0.3059367]
[1749412804529,1.13848031,654.52,653.73,0.3059367]
[1749412804729,1.13848031,654.51,653.73,0.3059367]
[1749412804927,0.26589648,654.56,653.73,0.3059367]
[1749412805127,1.13847372,654.55,653.73,0.3059367]
[1749412805331,1.13847372,654.54,653.73,0.3059367]
[1749412805532,1.13847372,654.53,653.73,0.3059367]
[1749412805730,1.13847372,654.52,653.73,0.3059367]
[1749412805927,1.13847372,654.51,653.73,0.3059367]
[1749412806133,0.26589648,654.56,653.73,0.3059367]
[1749412806327,1.13845544,654.55,653.73,0.3059367]
[1749412806532,1.13845544,654.54,653.73,0.3059367]
[1749412806729,1.13845544,654.53,653.73,0.3059367]
[1749412807030,1.13845544,654.52,653.73,0.3059367]
[1749412807227,1.13845544,654.51,653.73,0.3059367]
[1749412807430,0.26589648,654.56,653.73,0.3059367]
[1749412807630,1.13839454,654.55,653.73,0.3059367]
[1749412807834,1.13839454,654.54,653.73,0.3059367]
[1749412808033,1.13839454,654.53,653.73,0.3059367]
[1749412808232,1.13839454,654.52,653.73,0.3059367]
[1749412808436,1.13839454,654.51,653.73,0.3059367]
[1749412808634,0.26589648,654.56,653.73,0.3059367]
[1749412808933,1.13836545,654.55,653.73,0.3059367]
[1749412809134,1.13836545,654.54,653.73,0.3059367]
[1749412809334,1.13836545,654.53,653.73,0.3059367]
[1749412809634,1.13836545,654.52,653.73,0.3059367]
[1749412809835,1.13836545,654.51,653.73,0.3059367]
[1749412810137,0.26589648,654.56,653.73,0.3059367]
[1749412810334,1.13831628,654.55,653.73,0.3059367]
[1749412810534,1.13831628,654.54,653.73,0.3059367]
[1749412810833,1.13831628,654.53,653.73,0.3059367]
[1749412811038,1.13831628,654.52,653.73,0.3059367]
[1749412811235,1.13831628,654.51,653.73,0.3059367]
[1749412811538,0.26589648,654.56,653.73,0.3059367]
[1749412811738,1.13829196,654.55,653.73,0.3059367]
[1749412811936,1.13829196,654.54,653.73,0.3059367]
[1749412812136,1.13829196,654.53,653.73,0.3059367]
[1749412812435,1.13829196,654.52,653.73,0.3059367]
[1749412812740,1.13829196,654.51,653.73,0.3059367]
[1749412813039,0.26589648,654.56,653.73,0.3059367]
[1749412813240,1.13817275,654.55,653.73,0.3059367]
[1749412813440,1.13817275,654.54,653.73,0.3059367]
[1749412813640,1.13817275,654.53,653.73,0.3059367]
[1749412813841,1.13817275,654.52,653.73,0.3059367]
[1749412814041,1.13817275,654.51,653.73,0.3059367]
[1749412814237,0.26589648,654.56,653.73,0.3059367]
[1749412814238,1.13825829,654.5,653.73,0.3059367]
[1749412814438,0.26589648,654.56,653.73,0.3059367]
[1749412814736,1.13825625,654.55,653.73,0.3059367]
[1749412814941,1.13825625,654.54,653.73,0.3059367]
[1749412815139,1.13825625,654.53,653.73,0.3059367]
[1749412815343,1.13825625,654.52,653.73,0.3059367]
[1749412815642,1.13825625,654.51,653.73,0.3059367]
[1749412815842,1.13825625,654.5,653.73,0.3059367]
[1749412816039,0.26589648,654.56,653.73,0.3059367]
[1749412816238,1.13830706,654.55,653.73,0.3059367]
[1749412816439,1.13830706,654.54,653.73,0.3059367]
[1749412816641,1.13830706,654.53,653.73,0.3059367]
[1749412816838,1.13830706,654.52,653.73,0.3059367]
[1749412817042,1.13830706,654.51,653.73,0.3059367]
[1749412817338,1.13830706,654.5,653.73,0.3059367]
[1749412817543,0.26589648,654.56,653.73,0.3059367]
[1749412817742,1.13827549,654.55,653.73,0.3059367]
[1749412817939,1.13827549,654.54,653.73,0.3059367]
[1749412818146,1.13827549,654.53,653.73,0.3059367]
[1749412818444,1.13827549,654.52,653.73,0.3059367]
[1749412818640,1.13827549,654.51,653.73,0.3059367]
[1749412818842,1.13827549,654.5,653.73,0.3059367]
[1749412819142,0.26589648,654.56,653.73,0.3059367]
[1749412819438,1.1383749,654.55,653.73,0.3059367]
[1749412819639,1.12750503,654.78,653.73,0.3059367]
[1749412819640,1.1383749,654.54,653.73,0.3059367]
[1749412819842,1.1383749,654.53,653.73,0.3059367]
[1749412820045,0.26599404,654.37,653.73,0.3059367]
[1749412837251,1.14397988,654.83,653.73,0.3059367]
[1749412837450,2.28501253,655.1,653.73,0.3059367]
[1749412837451,0.26595338,654.45,653.73,0.3059367]
[1749412837655,1.13936139,654.81,653.73,0.3059367]
[1749412837852,1.13936139,654.8,653.73,0.3059367]
[1749412838053,1.14397988,654.87,653.73,0.3059367]
[1749412838054,0.26591782,654.49,653.73,0.3059367]
[1749412839251,0.26591782,654.49,653.73,4.09539495]
[1749412840551,0.26591782,654.49,653.75,3.78945825]
[1749412840756,0.26591782,654.49,653.75,4.09538559]
[1749412841255,0.26591782,654.49,653.75,0.30592734]
[1749412841456,0.26591782,654.49,653.75,4.09538559]
[1749412841956,0.26591782,654.49,653.75,0.30592734]
[1749412875976,0.26591782,654.49,653.79,3.78945825]
[1749412877179,0.26591782,654.49,653.8,3.78945825]
[1749412878076,0.26591782,654.49,653.75,0.30592734]
[1749412891285,0.26591782,654.49,653.79,3.78945825]
[1749412891690,0.26591782,654.49,653.8,3.78945825]
[1749412892586,0.26591782,654.49,653.79,3.78945825]
[1749412893089,0.26591782,654.49,653.8,3.78945825]
[1749412893985,0.26591782,654.49,653.81,3.78945825]
[1749412895890,0.26591782,654.49,653.82,3.78945825]
[1749412897189,0.26591782,654.49,653.83,3.78945825]
[1749412898095,0.26591782,654.49,653.84,3.78945825]
[1749412898588,0.26591782,654.49,653.86,3.78945825]
[1749412900293,0.26591782,654.49,653.85,3.78945825]
[1749412901393,0.26591782,654.49,653.86,3.78945825]
[1749412901689,0.26591782,654.49,653.82,3.78945825]
[1749412902089,0.26591782,654.49,653.83,3.78945825]
[1749412902789,1.14444072,654.96,653.84,0.30588523]
[1749412902989,0.26588429,654.61,653.84,0.30588523]
[1749412903193,1.14444072,654.96,653.84,0.30588523]
[1749412903194,1.1653444,654.94,653.84,0.30588523]
[1749412903390,0.26587414,654.61,653.84,0.30588523]
[1749412912994,0.26587414,654.61,653.92,3.78945825]
[1749412917198,0.26587414,654.61,653.91,3.78945825]
[1749412918398,0.26587414,654.61,653.92,3.78945825]
[1749412918801,0.26587414,654.61,653.91,3.78945825]
[1749412921404,0.26587414,654.61,653.86,3.78945825]
[1749412926404,0.26587414,654.61,653.84,4.09534348]
[1749412929304,0.26587414,654.61,653.84,0.30588523]
[1749412938922,0.26587414,654.61,653.85,3.78945825]
[1749412943621,0.26587414,654.61,653.86,3.78945825]
[1749412950024,0.26587414,654.61,653.87,3.78945825]
[1749412955029,0.26587414,654.61,653.84,0.30588523]
[1749412964836,0.26587414,654.61,653.85,3.78945825]
[1749412966134,0.26587414,654.61,653.84,0.30588523]
[1749412968137,0.26587414,654.61,653.84,4.09534348]
[1749412971536,0.26587414,654.61,653.86,3.78945825]
[1749412971939,0.26587414,654.61,653.91,3.78945825]
[1749412975637,0.26587414,654.61,653.9,3.78945825]
[1749412976138,0.26587414,654.61,653.92,3.78945825]
[1749412977541,0.26587414,654.61,653.95,3.78945825]
[1749412981548,0.26587414,654.61,653.92,3.78945825]
[1749412981946,0.26587414,654.61,653.91,3.78945825]
[1749412985550,0.26587414,654.61,653.92,3.78945825]
[1749412986853,0.26587414,654.61,653.93,3.78945825]
[1749412987050,1.14299764,654.92,653.93,3.78945825]
[1749412987250,0.26583453,654.72,653.93,3.78945825]
[1749412987554,0.26583453,654.72,653.93,0.30584313]
[1749413000665,0.26583453,654.72,653.97,3.78945825]
[1749413000862,0.26583453,654.72,653.98,0.30581974]
[1749413001869,0.26583453,654.72,654.01,3.78945825]
[1749413006471,0.26583453,654.72,654.02,3.78945825]
[1749413007470,0.26583453,654.72,653.98,0.30581974]
[1749413007471,0.26583453,654.72,654.01,3.78945825]
[1749413010375,0.26583453,654.72,653.99,3.78945825]
[1749413010777,0.26583453,654.72,654.02,3.78945825]
[1749413011778,0.26583453,654.72,653.98,0.30581974]
[1749413016986,1.14542509,655.04,653.98,0.30581974]
[1749413017285,0.26578987,654.83,653.98,0.30581974]
[1749413018682,1.14141983,655.29,653.98,0.30581974]
[1749413018886,1.14516891,655.28,653.98,0.30581974]
[1749413019086,3.8212794,656.3,653.98,0.30581974]
[1749413019087,0.26582032,654.91,653.98,0.30581974]
[1749413025390,0.26582032,654.91,653.99,3.78945825]
[1749413025590,0.26582032,654.91,654.0,0.30581039]
[1749413027688,0.26582032,654.91,654.0,4.09526864]
[1749413028994,0.26582032,654.91,654.0,0.30581039]
[1749413033088,0.26582032,654.91,654.0,4.09526864]
[1749413035290,0.26582032,654.91,654.01,3.78945825]
[1749413035495,0.26582032,654.91,654.02,0.30580104]
[1749413035695,0.26582032,654.91,654.02,4.09525929]
[1749413036093,0.26582032,654.91,654.02,0.30580104]
[1749413036992,0.26582032,654.91,654.02,4.09525929]
[1749413037696,0.26582032,654.91,654.03,3.78945825]
[1749413037892,0.26582032,654.91,654.04,0.30579169]
[1749413038497,0.26582032,654.91,654.07,3.78945825]
[1749413038796,0.26582032,654.91,654.08,0.30577299]
[1749413038992,0.26582032,654.91,654.08,4.09523124]
[1749413040798,0.26582032,654.91,654.11,3.78945825]
[1749413040999,0.26582032,654.91,654.12,0.30575429]
[1749413045800,0.26582032,654.91,654.12,4.09521254]
[1749413047002,0.26582032,654.91,654.12,0.30575429]
[1749413047906,1.14353522,655.3,654.12,0.30575429]
[1749413048105,1.14353522,655.29,654.12,0.30575429]
[1749413048404,0.26571883,655.02,654.12,0.30575429]
[1749413051308,1.14353522,655.39,654.12,0.30575429]
[1749413051607,0.26570159,655.15,654.12,0.30575429]
[1749413060612,0.26570159,655.15,654.18,3.78945825]
[1749413060814,0.26570159,655.15,654.19,0.30572157]
[1749413061017,0.26570159,655.15,654.19,4.09517982]
[1749413061918,0.26570159,655.15,654.19,0.30572157]
[1749413076129,0.26570159,655.15,654.21,3.78945825]
[1749413076330,0.26570159,655.15,654.22,0.30570756]
[1749413077529,0.26570159,655.15,654.22,4.09516581]
[1749413078030,0.26570159,655.15,654.22,0.30570756]
[1749413094438,0.26570159,655.15,654.3,3.78945825]
[1749413094642,0.26570159,655.15,654.31,0.30566551]
[1749413098544,0.26570159,655.15,654.31,4.09512376]
[1749413101841,0.26570159,655.15,654.32,3.78945825]
[1749413102044,0.26570159,655.15,654.33,0.30565616]
[1749413102242,0.26570159,655.15,654.33,4.09511441]
[1749413105048,0.26570159,655.15,654.34,3.78945825]
[1749413105251,0.26570159,655.15,654.35,0.30564682]
[1749413107145,0.26570159,655.15,654.35,4.09510507]
[1749413107345,1.13566643,655.35,654.35,4.09510507]
[1749413107649,0.26563466,655.25,654.35,0.30564682]
[1749413122454,0.26563466,655.25,654.36,3.78945825]
[1749413122650,0.26563466,655.25,654.37,0.30563748]
[1749413122852,0.26563466,655.25,654.38,3.78945825]
[1749413123054,0.26563466,655.25,654.39,0.30562814]
[1749413128751,0.26563466,655.25,654.4,3.78945825]
[1749413128956,0.26563466,655.25,654.41,0.3056188]
[1749413129754,0.26563466,655.25,654.41,4.09507705]
[1749413130157,0.26563466,655.25,654.41,0.3056188]
[1749413131961,0.26563466,655.25,654.42,3.78945825]
[1749413132157,0.26563466,655.25,654.43,0.30560946]
[1749413133957,0.26563466,655.25,654.43,4.09506771]
[1749413135361,0.26563466,655.25,654.44,3.78945825]
[1749413135563,0.26563466,655.25,654.44,4.09506304]
[1749413136762,0.26563466,655.25,654.44,0.30560479]
[1749413138965,1.11464534,655.65,654.44,0.30560479]
[1749413139166,1.11464534,655.64,654.44,0.30560479]
[1749413139463,0.2656083,655.36,654.44,0.30560479]
[1749413153778,0.2656083,655.36,654.47,3.78945825]
[1749413154076,0.2656083,655.36,654.48,0.30558611]
[1749413154279,0.2656083,655.36,654.48,4.09504436]
[1749413154677,0.2656083,655.36,654.49,3.78945825]
[1749413154976,0.2656083,655.36,654.5,0.30557677]
[1749413164081,1.11464534,655.62,654.5,0.30557677]
[1749413164283,1.11464534,655.79,654.5,0.30557677]
[1749413164482,0.26556067,655.53,654.5,0.30557677]
[1749413166284,1.11464534,655.92,654.5,0.30557677]
[1749413166586,0.26556169,655.62,654.5,0.30557677]
[1749413166981,1.11464534,655.89,654.5,0.30557677]
[1749413167181,1.11464534,655.99,654.5,0.30557677]
[1749413167484,5.34979116,657.55,654.86,3.78945825]
[1749413167485,0.26548571,655.72,654.86,3.78945825]
[1749413167686,0.26548571,655.72,654.87,0.30540412]
[1749413171188,1.11464534,656.07,654.87,0.30540412]
[1749413171389,3.37344663,656.23,654.87,0.30540412]
[1749413171589,0.2654523,655.8,654.87,0.30540412]
[1749413171790,2.35959035,656.21,654.87,0.30540412]
[1749413171994,0.26542092,655.8,654.87,0.30540412]
[1749413172390,1.11464534,656.18,654.87,0.30540412]
[1749413172589,1.14025723,656.23,654.87,0.30540412]
[1749413172590,0.26542395,655.8,654.87,0.30540412]
[1749413222534,0.26542395,655.8,654.87,4.09486237]
[1749413223033,0.26542395,655.8,654.87,0.30540412]
[1749413225634,0.26542395,655.8,654.87,4.09486237]
[1749413226535,0.26542395,655.8,654.89,3.78945825]
[1749413226735,0.26542395,655.8,654.9,0.30539013]
[1749413243245,0.26542395,655.8,654.9,4.09484838]
[1749413247243,0.26542395,655.8,654.91,3.78945825]
[1749413247445,0.26542395,655.8,654.92,0.3053808]
[1749413252347,0.26542395,655.8,655.03,3.78945825]
[1749413252648,0.26542395,655.8,655.04,0.30532486]
[1749413286979,1.11030813,655.79,655.04,0.30532486]
[1749413287182,1.11030813,655.78,655.04,0.30532486]
[1749413287479,0.26542395,655.8,655.04,0.30532486]
[1749413287682,1.10991519,655.79,655.04,0.30532486]
[1749413287879,1.10998526,655.78,655.04,0.30532486]
[1749413288083,0.26542395,655.8,655.04,0.30532486]
[1749413288283,1.10998526,655.79,655.04,0.30532486]
[1749413288584,1.10998526,655.78,655.04,0.30532486]
[1749413288783,0.26542395,655.8,655.04,0.30532486]
[1749413288981,1.10952978,655.79,655.04,0.30532486]
[1749413289285,1.10952978,655.78,655.04,0.30532486]
[1749413289484,0.26542395,655.8,655.04,0.30532486]
[1749413289681,1.10928983,655.79,655.04,0.30532486]
[1749413289881,0.26542395,655.8,655.04,0.30532486]
[1749413290085,1.10904814,655.79,655.04,0.30532486]
[1749413290285,0.26542395,655.8,655.04,0.30532486]
[1749413290484,1.10905149,655.79,655.04,0.30532486]
[1749413290684,0.26542395,655.8,655.04,0.30532486]
[1749413291887,1.10798014,655.79,655.04,0.30532486]
[1749413292084,1.10798014,655.78,655.04,0.30532486]
[1749413292285,1.10798014,655.77,655.04,0.30532486]
[1749413292486,0.26542395,655.8,655.04,0.30532486]
[1749413292685,1.10636153,655.79,655.04,0.30532486]
[1749413292885,1.10636153,655.78,655.04,0.30532486]
[1749413293088,1.10636153,655.77,655.04,0.30532486]
[1749413293385,0.26542395,655.8,655.04,0.30532486]
[1749413293584,1.10554962,655.79,655.04,0.30532486]
[1749413293885,1.10554962,655.78,655.04,0.30532486]
[1749413294088,0.26542395,655.8,655.04,0.30532486]
[1749413294290,1.10529645,655.79,655.04,0.30532486]
[1749413294489,0.26542395,655.8,655.04,0.30532486]
[1749413294692,1.10518546,655.79,655.04,0.30532486]
[1749413294889,0.26542395,655.8,655.04,0.30532486]
[1749413295094,1.10516791,655.79,655.04,0.30532486]
[1749413295389,0.26542395,655.8,655.04,0.30532486]
[1749413295589,1.10507423,655.79,655.04,0.30532486]
[1749413295790,0.26542395,655.8,655.04,0.30532486]
[1749413344937,1.14007531,656.06,655.04,0.30532486]
[1749413345137,1.10299534,656.05,655.04,0.30532486]
[1749413345337,0.26539359,655.89,655.04,0.30532486]
[1749413353645,1.1008742,656.22,655.04,0.30532486]
[1749413353847,1.1008742,656.21,655.04,0.30532486]
[1749413354045,0.2653602,655.98,655.04,0.30532486]
[1749413363256,1.1008742,656.32,655.04,0.30532486]
[1749413363449,0.26531974,656.08,655.04,0.30532486]
[1749413374160,0.26531974,656.08,655.08,3.78945825]
[1749413374365,0.26531974,656.08,655.1,0.3052969]
[1749413382362,1.09406342,656.49,655.1,0.3052969]
[1749413382565,1.09406342,656.48,655.1,0.3052969]
[1749413382763,0.26527726,656.18,655.1,0.3052969]
[1749413396572,0.26527726,656.18,655.15,3.78945825]
[1749413396770,0.26527726,656.18,655.17,0.30526428]
[1749413398471,0.26527726,656.18,655.17,4.09472253]
[1749413398871,0.26527726,656.18,655.18,3.78945825]
[1749413399076,0.26527726,656.18,655.2,0.3052503]
[1749413399377,1.08471641,656.17,655.2,0.3052503]
[1749413399677,1.13509929,655.96,654.37,3.78945825]
[1749413399874,1.13509929,655.86,654.5,3.78945825]
[1749413400078,1.08471641,655.85,654.51,0.3055721]
[1749413400378,1.08471641,655.84,654.51,0.3055721]
[1749413400580,1.08471641,655.83,654.51,0.3055721]